Cogmind - Beta 9.1 @@@ ROGUE MODE // 2019.10.29 @ 15:38:30 Player: Hilbert Result: Destroyed by H-77 Assassin with Coil Gun Performance ------------- Evolutions (7) 3500 Regions Visited (10) 2000 Robots Destroyed (43) 215 Value Destroyed (1561) 1561 Prototype IDs (1) 20 Alien Tech Used (0) 0 Bonus (0) 0 TOTAL SCORE: 7296 Bonus ------- None Cogmind --------- Core Integrity 0/1300 Matter 277/300 Energy 99/100 System Corruption 0% Temperature Cool (0) Location -3/Research Parts ------- Power (2) Propulsion (9) Utility (7) Weapon (3) Inventory (4) Layered Light Armor Plating Improved Remote Shield Drone Bay (0/2) Peak State ------------ Power Light Deuterium Engine Fission Core Propulsion Improved Aluminum Leg Carbon-fiber Leg Armored Huge Wheel Armored Huge Wheel Armored Huge Wheel Utility Large Storage Unit Advanced Sensor Array Advanced Targeting Computer Improved Core Analyzer Hardened Light Armor Plating Hardened Light Armor Plating Hardened Medium Armor Plating Weapon Heavy Missile Launcher Lance Inventory Light Antimatter Reactor Gravmag System Weight Redist. System Layered Light Armor Plating Drone Bay Mini Drone Bay Plasma Cannon Great Axe [Rating: 70] Favorites ----------- Power Improved Deuterium Engine Engine Improved Deuterium Engine Power Core Fission Core Reactor Light Antimatter Reactor Propulsion Improved Aluminum Leg Leg Improved Aluminum Leg Wheel Armored Huge Wheel Hover Unit Gravmag System Flight Unit Flight Unit Utility Advanced Targeting Computer Device Advanced Sensor Array Storage Large Storage Unit Processor Advanced Targeting Computer Protection Layered Light Armor Plating Weapon Greatsword Energy Gun Heavy Laser Energy Cannon Plasma Cannon Ballistic Gun Light Assault Rifle Launcher Heavy Missile Launcher Impact Weapon Heavy Flail Slashing Weapon Greatsword Piercing Weapon Lance Build | -11 -10 -9 -8 -7 -6 -6 -6 -5 -4 -3 ------- Run | Scr Mat Mat Mat Fac Fac Low Low Fac Fac Res Slots Evolved 14 | . . 2 2 2 2 . . 2 2 2 Power 1 | . . . . . 1 . . . . . Propulsion 7 | . . 1 1 2 . . . 1 1 1 Utility 5 | . . 1 1 . 1 . . 1 1 . Weapon 1 | . . . . . . . . . . 1 Parts Attached 81 | 5 2 8 4 29 5 6 . 2 17 3 Power 14 | 1 . 4 . 4 1 . . . 4 . Engine 8 | 1 . 4 . 2 . . . . 1 . Core 3 | . . . . 2 1 . . . . . Reactor 3 | . . . . . . . . . 3 . Propulsion 25 | 2 . 3 1 10 3 . . 1 5 . Treads . | . . . . . . . . . . . Leg 14 | . . 1 1 7 . . . 1 4 . Wheel 6 | 2 . . . . 3 . . . 1 . Hover 1 | . . . . 1 . . . . . . Flight 4 | . . 2 . 2 . . . . . . Utility 23 | 1 1 1 1 8 1 3 . . 7 . Device 11 | . 1 1 . 4 1 1 . . 3 . Storage 3 | 1 . . 1 1 . . . . . . Processor 2 | . . . . 1 . 1 . . . . Hackware . | . . . . . . . . . . . Protection 7 | . . . . 2 . 1 . . 4 . Artifact . | . . . . . . . . . . . Weapon 19 | 1 1 . 2 7 . 3 . 1 1 3 Energy Gun 2 | . 1 . . 1 . . . . . . Energy Cannon 1 | . . . . . . 1 . . . . Ballistic Gun 1 | 1 . . . . . . . . . . Ballistic Cannon . | . . . . . . . . . . . Launcher 6 | . . . 1 2 . 1 . 1 1 . Special Weapon . | . . . . . . . . . . . Impact Weapon 1 | . . . 1 . . . . . . . Slashing Weapon 7 | . . . . 4 . . . . . 3 Piercing Weapon 1 | . . . . . . 1 . . . . Special Melee Weapon . | . . . . . . . . . . . Unidentified Prototypes 1 | . . 1 . . . . . . . . Parts Lost 42 | . 5 1 8 8 . 2 . 2 15 1 Power 10 | . 1 . 1 2 . . . 1 5 . Propulsion 18 | . 2 . 4 4 . . . 1 7 . Utility 7 | . . 1 2 1 . 1 . . 2 . Weapon 7 | . 2 . 1 1 . 1 . . 1 1 Highest Loss Streak 8 | . 5 1 8 3 . 1 . 2 7 1 Average Slot Usage (%) 65 | . 74 64 44 70 82 76 80 74 70 14 Engine 5 | . 10 11 6 4 6 6 6 4 4 . Core 2 | . . . . 1 3 6 6 5 2 . Leg 16 | . . 10 12 35 16 . . 4 7 2 Wheel 7 | . 22 . . . 3 20 20 17 14 . Flight 1 | . . 22 9 . 10 . . . . . Device 8 | . 13 13 9 10 10 7 . . 4 4 Storage 3 | . 14 7 4 . 6 6 6 5 5 2 Processor 6 | . . . . 5 6 9 13 11 10 4 Protection 5 | . . . . 3 6 8 13 11 11 . Slashing Weapon 2 | . . . . 4 6 2 . . . . Piercing Weapon 1 | . . . . . . 3 6 5 5 . Naked Turns 193 | . . . 14 71 . . . . . 108 Heaviest Build 58 | 8 8 8 12 36 46 58 58 58 56 18 Greatest Support 90 | 32 38 14 14 77 90 90 84 84 84 20 Greatest Overweight (x) 3 | . . . 3 . 1 . . . 1 1 Average Overweight (x) . | . . . . . . . . . . . Largest Inventory Capacity 10 | 6 6 6 6 10 10 10 10 10 10 10 Average Capacity 7 | 5 6 5 4 4 10 10 10 10 10 7 Most Carried 10 | 6 6 4 4 7 10 10 9 9 10 9 Average Carried 5 | 3 5 1 2 3 5 9 9 8 8 6 Final Capacity 10 | 6 6 4 4 10 10 10 10 10 10 4 Final Carried 10 | 6 5 3 2 5 10 9 9 8 9 3 Class Distribution -------------------- 93% | Mutant 6% | Scavenger-Mutant Dominant Class ---------------- Mutant | -10/Materials Mutant | -9/Materials Mutant | -8/Materials Mutant | -7/Factory Scavenger-Mutant | -6/Factory Mutant | -6/Lower Caves Mutant | -6/Lower Caves Mutant | -5/Factory Mutant | -4/Factory Mutant | -3/Research Resources | -11 -10 -9 -8 -7 -6 -6 -6 -5 -4 -3 ----------- Run | Scr Mat Mat Mat Fac Fac Low Low Fac Fac Res Matter Collected 1232 | 250 22 . . 492 . 212 . . 256 . Remotely . | . . . . . . . . . . . Salvage Created 1446 | . 94 . 71 434 . 165 . 1 681 . Parts 72 | . 8 . 2 24 . 8 . . 30 . Haulers Intercepted 1 | . . . . . . . . . 1 . Recyclers Shooed 2 | . . . . . . . . . 2 . Parts Field Recycled . | . . . . . . . . . . . Retrieved Matter . | . . . . . . . . . . . Parts Self-Destructed 6 | . . . . . . 6 . . . . Prevented 1 | . . . . . . 1 . . . . Kills | -11 -10 -9 -8 -7 -6 -6 -6 -5 -4 -3 ------- Run | Scr Mat Mat Mat Fac Fac Low Low Fac Fac Res Combat Hostiles Destroyed 35 | . 4 . 4 12 . 4 . 1 10 . Melee 8 | . . . . 3 . . . . 5 . Guns 6 | . 4 . . 2 . . . . . . Cannons 2 | . . . . . . 2 . . . . AOE 19 | . . . 4 7 . 2 . 1 5 . Classes Destroyed 11 | . 2 . 1 6 . 1 . . 1 . Worker 3 | . . . . 1 . . . . 2 . Builder 1 | . . . . 1 . . . . . . Hauler 1 | . . . . . . . . . 1 . Recycler 2 | . . . . 1 . . . . 1 . Watcher 1 | . . . . 1 . . . . . . Swarmer 15 | . 3 . . 7 . . . . 5 . Grunt 10 | . 1 . 3 1 . . . 1 4 . Sentry 3 | . . . 1 . . 1 . . 1 . Hunter 4 | . . . . 2 . 2 . . . . Programmer 2 | . . . . 2 . . . . . . Thief 1 | . . . . . . 1 . . . . Best Kill Streak 7 | . 3 . 4 4 . 2 . 1 7 . Combat Bots Only 5 | . 3 . 4 4 . 2 . 1 5 . Max Kills in Single Turn 4 | . 1 . 2 4 . 1 . 1 2 . Gunslinging . | . . . . . . . . . . . Exploded 4 | . . . 2 4 . 1 . 1 2 . Melee 1 | . . . . 1 . . . . 1 . Uniques/NPCs Destroyed . | . . . . . . . . . . . Combat | -11 -10 -9 -8 -7 -6 -6 -6 -5 -4 -3 -------- Run | Scr Mat Mat Mat Fac Fac Low Low Fac Fac Res Damage Taken 6953 | . 449 181 772 1202 . 466 . 332 2097 1454 Core 2136 | . 87 . 281 118 . 22 . 57 267 1304 Absorbed by Shields . | . . . . . . . . . . . Core Remaining (%) 82 | 100 65 100 48 83 . . 97 94 76 . Volleys Fired 82 | . 22 . 11 26 . 14 . 5 4 . Largest 2 | . 2 . 1 1 . 1 . 1 1 . Hottest 80 | . 70 . 36 69 . 80 . 39 39 . Shots Fired 91 | . 31 . 11 26 . 14 . 5 4 . Gun 53 | . 31 . . 22 . . . . . . Cannon 8 | . . . . . . 8 . . . . Launcher 30 | . . . 11 4 . 6 . 5 4 . Special . | . . . . . . . . . . . Kinetic 21 | . 21 . . . . . . . . . Thermal 40 | . 10 . . 22 . 8 . . . . Explosive 30 | . . . 11 4 . 6 . 5 4 . Electromagnetic . | . . . . . . . . . . . Robot Hit Streak 7 | . 5 . 3 7 . 6 . 4 5 . Robot Miss Streak 3 | . 2 . 1 3 . 2 . 2 2 . Penetration Max . | . . . . . . . . . . . Secondary Targets 1 | . 1 . . . . . . . . . Max Gunslinging Chain 1 | . 1 . . . . . . . . . Shots Hit Robots 96 | . 19 . 7 31 . 11 . 4 24 . Core Hits 97 | . 9 . 23 25 . 10 . 6 23 1 Critical Hits . | . . . . . . . . . . . Critical Kills . | . . . . . . . . . . . Critical Parts Destroyed . | . . . . . . . . . . . Melee Attacks 93 | . . . . 43 2 . . 7 32 9 Impact . | . . . . . . . . . . . Slashing 54 | . . . . 43 2 . . . . 9 Piercing 39 | . . . . . . . . 7 32 . Sneak Attacks 8 | . . . . 3 . . . . 5 . Combat Hostiles . | . . . . . . . . . . . Follow-up Attacks . | . . . . . . . . . . . Damage Inflicted 5462 | . 173 . 724 2013 . 573 . 428 1545 6 Guns 494 | . 169 . . 325 . . . . . . Cannons 153 | . . . . . . 153 . . . . Explosions 2667 | . . . 722 666 . 420 . 428 431 . Melee 2119 | . . . . 1005 . . . . 1114 . Ramming 29 | . 4 . 2 17 . . . . . 6 Kinetic 133 | . 133 . . . . . . . . . Thermal 514 | . 36 . . 325 . 153 . . . . Explosive 2667 | . . . 722 666 . 420 . 428 431 . Electromagnetic . | . . . . . . . . . . . Impact . | . . . . . . . . . . . Slashing 1005 | . . . . 1005 . . . . . . Piercing 1114 | . . . . . . . . . 1114 . Highest Corruption 5 | . . . . 4 . . . 5 3 . Average Corruption 3 | . . . . 3 . . . 5 2 . Corruption Purged . | . . . . . . . . . . . Effects 15 | . . . . 15 . . . . . . Message Errors 6 | . . . . 6 . . . . . . Matter Fused 2 | . . . . 2 . . . . . . Heat Flow Errors 3 | . . . . 3 . . . . . . Energy Discharges 2 | . . . . 2 . . . . . . Data Loss (minor) 1 | . . . . 1 . . . . . . Targeting Errors 1 | . . . . 1 . . . . . . Overload Shots . | . . . . . . . . . . . Overflow Damage 501 | . . . 43 245 . 16 . 7 190 . Projectiles . | . . . . . . . . . . . Explosions 80 | . . . 43 . . 16 . 7 14 . Melee 421 | . . . . 245 . . . . 176 . Knockbacks . | . . . . . . . . . . . Impact . | . . . . . . . . . . . Kinetic . | . . . . . . . . . . . Secondary . | . . . . . . . . . . . Self-Inflicted Damage 152 | . 2 . 111 . . 34 . . 2 3 Shots 6 | . . . 4 . . 1 . . 1 . Rammed 4 | . 1 . 2 . . . . . . 1 Targets Rammed 10 | . 1 . 2 6 . . . . . 1 Kicked 6 | . . . . 6 . . . . . . Crushed . | . . . . . . . . . . . Highest Temperature 187 | . 187 1 5 161 . 156 . 43 30 . Average Temperature 64 | . 112 1 5 67 . 55 . 20 14 . Received Heat Transfer 1095 | . 192 60 270 45 . 18 . 36 378 96 Siege Activations . | . . . . . . . . . . . Robots Corrupted . | . . . . . . . . . . . Combat Hostiles . | . . . . . . . . . . . Parts Fried . | . . . . . . . . . . . Impact Corruptions . | . . . . . . . . . . . Robots Melted . | . . . . . . . . . . . Combat Hostiles . | . . . . . . . . . . . Parts Melted 1 | . . . . 1 . . . . . . Heat Transferred 966 | . 111 . . 555 . 300 . . . . Parts Sabotaged . | . . . . . . . . . . . Parts Stolen . | . . . . . . . . . . . Parts Stripped . | . . . . . . . . . . . Power Chain Reactions . | . . . . . . . . . . . Missiles Intercepted . | . . . . . . . . . . . Alert | -11 -10 -9 -8 -7 -6 -6 -6 -5 -4 -3 ------- Run | Scr Mat Mat Mat Fac Fac Low Low Fac Fac Res Peak Influence 227 | . 135 109 215 227 39 . . 71 209 35 Average Influence 69 | . 68 66 69 81 37 . . 39 97 20 Maximum Alert Level 1 | . . . 1 1 . . . . 1 . Low Security (%) 94 | . . . . . . . . . . . Level 1 5 | . . . . . . . . . . . Level 2 . | . . . . . . . . . . . Level 3 . | . . . . . . . . . . . Level 4 . | . . . . . . . . . . . Level 5 . | . . . . . . . . . . . High Security . | . . . . . . . . . . . Max Security . | . . . . . . . . . . . Squads Dispatched 12 | . 3 . 1 4 . . . . 2 2 Investigation 1 | . . . . . . . . . . 1 Extermination 2 | . . . . 2 . . . . . . Reinforcement 8 | . 3 . 1 2 . . . . 1 1 Assault . | . . . . . . . . . . . Garrison 1 | . . . . . . . . . 1 . Intercept . | . . . . . . . . . . . Construction Impeded 1 | . . . . 1 . . . . . . Haulers Reinforced . | . . . . . . . . . . . Stealth | -11 -10 -9 -8 -7 -6 -6 -6 -5 -4 -3 --------- Run | Scr Mat Mat Mat Fac Fac Low Low Fac Fac Res Distress Signals 7 | . 3 . . 1 . . . . 2 1 Communications Jammed . | . . . . . . . . . . . Distress Signals . | . . . . . . . . . . . Times Spotted 122 | . 13 5 15 22 3 5 . 6 31 22 Peak Tracking Total 11 | . 7 5 7 4 4 3 . 3 7 11 Tactical Retreats 17 | . . . 2 2 . . . 2 6 5 Traps | -11 -10 -9 -8 -7 -6 -6 -6 -5 -4 -3 ------- Run | Scr Mat Mat Mat Fac Fac Low Low Fac Fac Res Traps Triggered 3 | . . . . . . . . . 2 1 Indirectly . | . . . . . . . . . . . Trap Hack Attempts . | . . . . . . . . . . . Triggered . | . . . . . . . . . . . Disarmed . | . . . . . . . . . . . Reprogrammed . | . . . . . . . . . . . Reused . | . . . . . . . . . . . Traps Extracted . | . . . . . . . . . . . Installed . | . . . . . . . . . . . Triggered 2 | . . . . . . 2 . . . . Machines | -11 -10 -9 -8 -7 -6 -6 -6 -5 -4 -3 ---------- Run | Scr Mat Mat Mat Fac Fac Low Low Fac Fac Res Machines Disabled 6 | . . . 3 2 . . . . 1 . Max in Single Turn 1 | . . . 1 1 . . . . 1 . Machines Sabotaged . | . . . . . . . . . . . Garrisons Compromised . | . . . . . . . . . . . Overloaded Fab Kills . | . . . . . . . . . . . Fab Network Shutdowns . | . . . . . . . . . . . Hacking | -11 -10 -9 -8 -7 -6 -6 -6 -5 -4 -3 --------- Run | Scr Mat Mat Mat Fac Fac Low Low Fac Fac Res Machines Accessed 10 | . 2 1 2 1 1 1 . . 2 . Terminals 9 | . 2 1 2 1 1 . . . 2 . Fabricators . | . . . . . . . . . . . Repair Stations . | . . . . . . . . . . . Recycling Units . | . . . . . . . . . . . Scanalyzers . | . . . . . . . . . . . Garrison Access . | . . . . . . . . . . . Total Hacks 26 | . 7 3 6 2 2 1 . . 5 . Successful 17 | . 5 3 4 . 1 1 . . 3 . Failed 9 | . 2 . 2 2 1 . . . 2 . Catastrophic 2 | . . . 1 . 1 . . . . . Database Lockouts . | . . . . . . . . . . . Manual 14 | . 5 2 5 . 2 . . . . . Terminals 25 | . 7 3 6 2 2 . . . 5 . Fabricators . | . . . . . . . . . . . Repair Stations . | . . . . . . . . . . . Recycling Units . | . . . . . . . . . . . Scanalyzers . | . . . . . . . . . . . Garrison Access . | . . . . . . . . . . . Terminal Hacks 11 | . 3 2 2 . . 1 . . 3 . Record 4 | . 1 . . . . . . . 3 . Robot Analysis 1 | . . . 1 . . . . . . . Open Door 1 | . . . . . . 1 . . . . Level Access Points 2 | . . 1 1 . . . . . . . Locate Traps 1 | . . 1 . . . . . . . . Recall Investigation 1 | . 1 . . . . . . . . . Zone Layout 1 | . 1 . . . . . . . . . Fabricator Hacks . | . . . . . . . . . . . Repair Station Hacks . | . . . . . . . . . . . Recycling Unit Hacks . | . . . . . . . . . . . Scanalyzer . | . . . . . . . . . . . Garrison Access Hacks . | . . . . . . . . . . . Unauthorized Hacks 14 | . 5 2 5 . 2 . . . . . Terminals 6 | . 2 1 2 . 1 . . . . . Botnet 6 | . 2 1 2 . 1 . . . . . Fabricators . | . . . . . . . . . . . Repair Stations . | . . . . . . . . . . . Recycling Units . | . . . . . . . . . . . Scanalyzers . | . . . . . . . . . . . Garrison Access . | . . . . . . . . . . . Data Cores Recovered . | . . . . . . . . . . . Used . | . . . . . . . . . . . Hacking Detections 7 | . 2 . 1 1 1 . . . 2 . Full Trace Events . | . . . . . . . . . . . Feedback Events . | . . . . . . . . . . . Feedback Blocked . | . . . . . . . . . . . Robot Schematics Acquired . | . . . . . . . . . . . Robots Built . | . . . . . . . . . . . Matter . | . . . . . . . . . . . Time . | . . . . . . . . . . . Total Robot Build Rating . | . . . . . . . . . . . Part Schematics Acquired . | . . . . . . . . . . . Parts Built . | . . . . . . . . . . . Matter . | . . . . . . . . . . . Time . | . . . . . . . . . . . Total Part Build Rating . | . . . . . . . . . . . Parts Repaired . | . . . . . . . . . . . Time . | . . . . . . . . . . . Parts Recycled . | . . . . . . . . . . . Recycled Matter . | . . . . . . . . . . . Retrieved Matter . | . . . . . . . . . . . Retrieved Components . | . . . . . . . . . . . Parts Scanalyzed . | . . . . . . . . . . . Part Schematics Acquired . | . . . . . . . . . . . Parts Damaged . | . . . . . . . . . . . Bothacking | -11 -10 -9 -8 -7 -6 -6 -6 -5 -4 -3 ------------ Run | Scr Mat Mat Mat Fac Fac Low Low Fac Fac Res Used RIF Installer . | . . . . . . . . . . . Robots Hacked . | . . . . . . . . . . . Non-combat . | . . . . . . . . . . . Combat . | . . . . . . . . . . . Robot Hacks Applied . | . . . . . . . . . . . Relay Couplers Released . | . . . . . . . . . . . Robots Rewired . | . . . . . . . . . . . Allies Hacked . | . . . . . . . . . . . Hacks Repelled . | . . . . . . . . . . . Allies | -11 -10 -9 -8 -7 -6 -6 -6 -5 -4 -3 -------- Run | Scr Mat Mat Mat Fac Fac Low Low Fac Fac Res Total Allies . | . . . . . . . . . . . Largest Group . | . . . . . . . . . . . Highest-Rated Group . | . . . . . . . . . . . Highest-Rated Ally . | . . . . . . . . . . . Total Orders 4 | . . . . . . 1 . . 3 . EXPLORE 4 | . . . . . . 1 . . 3 . Ally Attacks . | . . . . . . . . . . . Total Damage . | . . . . . . . . . . . Kills . | . . . . . . . . . . . Allies Corrupted . | . . . . . . . . . . . Allies Melted . | . . . . . . . . . . . Intel | -11 -10 -9 -8 -7 -6 -6 -6 -5 -4 -3 ------- Run | Scr Mat Mat Mat Fac Fac Low Low Fac Fac Res Robot Analysis Total 1 | . . . 1 . . . . . . . Derelict Logs Recovered 1 | . . . . . . 1 . . . . Drone Launches 5 | . . . . . . 2 . . 3 . Drone Recoveries . | . . . . . . . . . . . Exploration | -11 -10 -9 -8 -7 -6 -6 -6 -5 -4 -3 ------------- Run | Scr Mat Mat Mat Fac Fac Low Low Fac Fac Res Turns Passed 3506 | 60 190 138 191 1246 152 412 71 159 559 328 Spaces Moved 2969 | 44 153 205 226 914 118 371 71 129 425 313 Core 507 | 1 43 . 41 189 . . . . . 233 Treads . | . . . . . . . . . . . Legs 917 | . . . 13 725 94 . . . 5 80 Wheels 1168 | 43 110 . . . 24 371 71 129 420 . Hover . | . . . . . . . . . . . Flight 377 | . . 205 172 . . . . . . . Fastest Speed 47 | 50 50 47 50 50 100 100 100 100 100 50 Average Speed 92 | 98 85 48 69 105 116 100 100 100 100 71 Slowest Speed 220 | 100 100 50 220 120 120 100 100 100 150 120 Overloaded Moves . | . . . . . . . . . . . Propulsion Burnouts . | . . . . . . . . . . . Robots Hopped 5 | . . 4 1 . . . . . . . Cave-ins Triggered 1 | . . . . . . . . 1 . . Exploration Rate (%) 21 | 4 41 22 30 30 6 51 12 7 18 12 Regions Visited 10 Branch Regions 2 Pre-discovered Areas . | . . . . . . . . . . . Known Exits Taken 3 | . . 1 1 . . . . 1 . . Unknown Exits Taken 7 | 1 1 . . 1 1 1 1 . 1 . Scrap Searched 4 | . . . . . . 4 . . . . Spaces Dug 47 | . . . . 26 2 . . 7 3 9 Terrain Destroyed 215 | . . . 33 49 2 62 . 40 20 9 Melee 47 | . . . . 26 2 . . 7 3 9 Projectile . | . . . . . . . . . . . AOE 168 | . . . 33 23 . 62 . 33 17 . Actions | -11 -10 -9 -8 -7 -6 -6 -6 -5 -4 -3 --------- Run | Scr Mat Mat Mat Fac Fac Low Low Fac Fac Res Total 3436 | 57 184 236 243 1076 130 396 70 143 499 402 Wait 162 | 3 3 25 . 42 . . . . 16 73 Move 2948 | 43 152 196 223 913 117 370 70 127 424 313 Hop 5 | . . 4 1 . . . . . . . Pick Up 22 | 6 2 2 2 7 . 1 . . 2 . Fast Attach 48 | 5 1 1 1 20 4 4 . . 12 . Attach 29 | . 1 4 3 9 1 1 . 2 5 3 Detach 22 | . . . . 6 6 2 . 1 4 3 Swap 4 | . . 3 . . . 1 . . . . Drop 10 | . 2 1 . 4 . 3 . . . . Fire 82 | . 22 . 11 26 . 14 . 5 4 . Melee 93 | . . . . 43 2 . . 7 32 9 Ram 4 | . 1 . 2 . . . . . . 1 Kick 6 | . . . . 6 . . . . . . Crush . | . . . . . . . . . . . Escape Stasis 1 | . . . . . . . . 1 . . Rewire . | . . . . . . . . . . . Trap . | . . . . . . . . . . . Miscellaneous . | . . . . . . . . . . . Route ------- -11/Scrapyard -10/Materials (discovered 2 exits: *Mat / [*Min]) -9/Materials (discovered 3 exits: *Mat x3) -8/Materials (discovered 3 exits: *Fac x3) -7/Factory -6/Factory -6/Lower Caves -6/Lower Caves -5/Factory (discovered 2 exits: *Fac / Ext) -4/Factory -3/Research History --------- Turn | Location | Event 17 | -11/Scrapyard | Discovered new exit (range 15) 61 | -11/Scrapyard | Entered Materials 165 | -10/Materials | Discovered new exit (range 6) 243 | -10/Materials | Discovered new exit (range 15) 251 | -10/Materials | Entered another Materials area 251 | -9/Materials | Evolved 2 slots: Propulsion x1, Utility x1 258 | -9/Materials | Lost 5 parts (1p2n2w) 306 | -9/Materials | Identified exit to Materials 308 | -9/Materials | Build established: Mutant 389 | -9/Materials | Entered another Materials area 389 | -8/Materials | Evolved 2 slots: Propulsion x1, Utility x1 463 | -8/Materials | Identified exit to Factory 566 | -8/Materials | Released all parts (2) 580 | -8/Materials | Core integrity fell below 50% 580 | -8/Materials | Entered Factory 580 | -7/Factory | Evolved 2 slots: Propulsion x2 597 | -7/Factory | Lost 8 parts (1p4n2u1w) 989 | -7/Factory | Lost 3 parts (1p1n1w) 1729 | -7/Factory | Lost 3 parts (2n1u) 1807 | -7/Factory | Discovered new exit (range 14) 1826 | -7/Factory | Entered another Factory area 1826 | -6/Factory | Evolved 2 slots: Power x1, Utility x1 1973 | -6/Factory | Discovered new exit (range 5) 1978 | -6/Factory | Entered Lower Caves 2034 | -6/Lower Caves | Learned 8 Factory zone layouts 2218 | -6/Lower Caves | Attracted the attention of an 0b10 checkpoint 2385 | -6/Lower Caves | Discovered new exit (range 5) 2390 | -6/Lower Caves | Entered another Lower Caves area 2398 | -6/Lower Caves | Encountered a Warlord checkpoint 2412 | -6/Lower Caves | Spotted B-75 Beast 2448 | -6/Lower Caves | Discovered new exit (range 11) 2461 | -6/Lower Caves | Entered Factory 2461 | -5/Factory | Evolved 2 slots: Propulsion x1, Utility x1 2462 | -5/Factory | Identified exit to Factory 2462 | -5/Factory | Identified exit to Extension 2616 | -5/Factory | Crushed by falling debris 2620 | -5/Factory | Entered another Factory area 2620 | -4/Factory | Evolved 2 slots: Propulsion x1, Utility x1 2788 | -4/Factory | Garrison activated, responded to threat 3142 | -4/Factory | Lost 6 parts (2p2n2u) 3163 | -4/Factory | Discovered new exit (range 15) 3179 | -4/Factory | Entered Research 3179 | -3/Research | Evolved 2 slots: Propulsion x1, Weapon x1 3208 | -3/Research | Lost 7 parts (2p4n1w) 3349 | -3/Research | Released all parts (5) 3496 | -3/Research | Core integrity fell below 50% 3504 | -3/Research | Core integrity fell below 20% 3507 | -3/Research | Destroyed by H-77 Assassin with Coil Gun Last Messages --------------- 03489_ Drone sends a signal. 03490_ Slug penetrates Wall. 03492_ Penetrated by Slug. 03492_ Slug penetrates Wall. 03493_ Penetrated by Slug. 03495_ Slug penetrates Wall. 03495_ Penetrated by Slug. 03497_ Slug penetrates Wall. 03497_ H-77 Assassin suffers critical hit. 03497_ Slug penetrates Wall. 03500_ H-77 Assassin retrieves Drone. 03500_ Penetrated by Slug. 03501_ Door malfunctions. 03503_ Penetrated by Slug. 03504_ Slug penetrates Wall. 03504_ Penetrated by Slug. 03504_ Slug penetrates U-05 Engineer. 03504_ U-05 Engineer destroyed. 03504_ Penetrated by Slug. [Achievement: This Is Interesting...] Map ----- +----------------------------------------------------+ | ???# #?????????????????????? | | ???# #?????????????????????? | | ???# #???????????????????????? | | ???# #???????????????????????? | | ???# #???????????????????????? | | ???# #???????????????????????? | | ???# #???????????????????????? | | ???# #???????????????????????? | | ???# #???????????????????????? | | ???# #####???????????????????? | | ???# # ########?????????????? | | ???# h #### T #?????????????? | | ???# # #?????????????? | | ???# # #?????????????? | | ???# # #?????????????? | | ???# # #?????????????? | | ???# ! h # #?????????????? | | ???# =%! # #?????????????? | | ???# # #?????????????? | | ???#/##### # #?????????????? | | ??? ???# # #?????????????? | | ?? ???# + #?????????????? | | ? ! ???# # #?????????????? | | ? ???# h # #?????????????? | | # ???# h #####+##?????????????? | | # ???# @ #?????????????? | | #######??# #?????????????? | | ?????????# #?????????????? | | ?????????# +?????????????? | | ?????????######## #?????????????? | | ???###########??# #?????????????? | | ??# ?# #????????###### | | ??# ?# ########?# | | ??# # # # | | ??#! # #! # | | ??# ! + # !]! + | | ??# # # | !]! # # | | ????############# # !]! # # | | ????????????????# %########## # | | ????????????????# ! # | | ????????????????# | | ????????????????# | | ????????????????+ # | | ????????????????# ############### | | ????????????????# #?????????????? | | ????????????????# #?????????????? | | ????????????????# #?????????????? | | ????????????????# #?????????????? | | ????????????????# #?????????????? | | ????????????????# +?????????????? | +----------------------------------------------------+ Best States ------------- Heat Dissipation 65 Energy Generation 37 Energy Capacity 500 Matter Stores 300 Matter Capacity 300 Sight Range 16 Robot Scan Range 16 Terrain Scan Range 16 Terrain Scan Density 10 Additional Mass Support 6 Armor Coverage 675 Thermal Conversion 30 Evasion (%) 60 Targeting Accuracy 8 Core Analysis 8 Kinecelleration 30 Item Schematics ----------------- None Robot Schematics ------------------ None Fabricated ------------ Nothing Alien Tech Used ----------------- None Achievements -------------- This Is Interesting... Challenges ------------ None Game ------ Seed ColdProtonPerforator Manual? 0 Play Time 00:54:51 Cumulative 22.2 hours Start 2019.10.29 @ 14:43:55 End 2019.10.29 @ 15:38:30 Sessions 1 Manual Loads 0 Difficulty Rogue Special Mode None Game No. 44 Rogue 44 Adventurer 0 Explorer 0 Win Type - Total 0 Types 0/0/0/0/0/0/0 Lore% 25 Gallery% 31 Achievement% 22 Wizard Run 0 Options --------- ASCII 0 Keyboard 1 Movement Vi Keybinds 0 Fullscreen 1 Font 18/SmallcapsGlow Map View 76x50 Tactical HUD 1 Map Filters NONE Filters NONE Steam 1 RUN: 00c44300-4909-43d6-b38f-151b6f0efa83